{"text_format":"3","workbook":"xlsx","n_sheets":2,"sheets":["Projektplan","Info"],"not_rendered":{"images":1,"defined_names":7},"read":"whole","date_system":"1900"}

{"sheet":"Projektplan","index":0,"n_rows":33,"n_cols":64,"rows_kept":33,"merged":[[2,2,2,3],[2,4,2,5],[3,2,3,3],[3,8,3,14],[3,15,3,21],[3,22,3,28],[3,29,3,35],[3,36,3,42],[3,43,3,49],[3,50,3,56],[3,57,3,63]]}
["Erstellen Sie auf diesem Arbeitsblatt einen Projektplan.\nGeben Sie den Titel dieses Projekts in Zelle B1 ein. \nInformationen zur Verwendung dieses Arbeitsblatts, einschließlich Anweisungen für die Sprachausgabe und den Verfasser dieser Arbeitsmappe, finden Sie auf dem Arbeitsblatt \"Info\".\nNavigieren Sie weiterhin in Spalte A abwärts, um weitere Anweisungen zu hören.","PROJEKTTITEL",{"$nulls":6},"EINFACHES GANTT-DIAGRAMM von Vertex42.com"]
["Geben Sie den Firmennamen in Zelle B2 ein.","Firmenname",{"$nulls":6},"https://www.vertex42.com/ExcelTemplates/simple-gantt-chart.html"]
["Geben Sie den Namen des Projektleiters in Zelle B3 ein. Geben Sie das Startdatum für das Projekt in Zelle E3 ein. Start des Projekts: Die Bezeichnung steht in Zelle C3.","Projektleiter","Projektanfang:",null,{"$f":"TODAY()","v":"2022-02-14"}]
["Die Anzeigewoche in Zelle E4 stellt die Anfangswoche dar, die im Projektplan in Zelle I4 angezeigt werden soll. Das Startdatum des Projekts wird als Woche 1 betrachtet. Um die Anzeigewoche zu ändern, geben Sie einfach eine neue Wochennummer in Zelle E4 ein.\nDas Startdatum für jede Woche, beginnend mit der Anzeigewoche aus Zelle E4, beginnt in Zelle I4 und wird automatisch berechnet. In dieser Ansicht werden 8 Wochen von Zelle I4 bis Zelle BF4 dargestellt.\nÄndern Sie diese Zellen nicht.\nAnzeigewoche: Die Bezeichnung steht in Zelle C4.",null,"Anzeigewoche:",null,1,{"$nulls":3},{"$f":"I5","v":"2022-02-14"},{"$nulls":6},{"$f":"P5","v":"2022-02-21"},{"$nulls":6},{"$f":"W5","v":"2022-02-28"},{"$nulls":6},{"$f":"AD5","v":"2022-03-07"},{"$nulls":6},{"$f":"AK5","v":"2022-03-14"},{"$nulls":6},{"$f":"AR5","v":"2022-03-21"},{"$nulls":6},{"$f":"AY5","v":"2022-03-28"},{"$nulls":6},{"$f":"BF5","v":"2022-04-04"}]
["Die Zellen I5 bis BL5 enthalten die Tagesnummer der Woche für die im Zellenblock oberhalb der einzelnen Datumszellen angezeigten Woche und werden automatisch berechnet.\nÄndern Sie diese Zellen nicht.\nDas heutige Datum ist rot (Hex #AD3815) hervorgehoben, vom aktuellen Datum in Zeile 5 die gesamte Datumsspalte hindurch bis zum Ende des Projektplans.",{"$nulls":7},{"$f":"Projektanfang-WEEKDAY(Projektanfang,1)+2+7*(Anzeigewoche-1)","v":"2022-02-14"},{"$f":"I5+1","v":"2022-02-15"},{"$f":"J5+1","v":"2022-02-16"},"2022-02-17","2022-02-18","2022-02-19","2022-02-20",{"$f":"O5+1","v":"2022-02-21"},{"$f":"P5+1","v":"2022-02-22"},"2022-02-23","2022-02-24","2022-02-25","2022-02-26","2022-02-27",{"$f":"V5+1","v":"2022-02-28"},{"$f":"W5+1","v":"2022-03-01"},"2022-03-02","2022-03-03","2022-03-04","2022-03-05","2022-03-06",{"$f":"AC5+1","v":"2022-03-07"},{"$f":"AD5+1","v":"2022-03-08"},"2022-03-09","2022-03-10","2022-03-11","2022-03-12","2022-03-13",{"$f":"AJ5+1","v":"2022-03-14"},{"$f":"AK5+1","v":"2022-03-15"},"2022-03-16","2022-03-17","2022-03-18","2022-03-19","2022-03-20",{"$f":"AQ5+1","v":"2022-03-21"},{"$f":"AR5+1","v":"2022-03-22"},"2022-03-23","2022-03-24","2022-03-25","2022-03-26","2022-03-27",{"$f":"AX5+1","v":"2022-03-28"},{"$f":"AY5+1","v":"2022-03-29"},{"$f":"AZ5+1","v":"2022-03-30"},"2022-03-31","2022-04-01","2022-04-02","2022-04-03",{"$f":"BE5+1","v":"2022-04-04"},{"$f":"BF5+1","v":"2022-04-05"},{"$f":"BG5+1","v":"2022-04-06"},"2022-04-07","2022-04-08","2022-04-09","2022-04-10"]
["Diese Zeile enthält Überschriften für den Projektplan, der darunter dargestellt ist. \nNavigieren Sie von B6 bis BL6, um sich die Inhalte vorsprechen zu lassen. Der erste Buchstabe jedes Tags der Woche für das Datum oberhalb der Überschrift, beginnend in Zelle I6 und fortlaufend bis Zelle BL6.\nAlle Projektzeitachsendiagramme werden automatisch basierend auf den eingegebenen Start- und Enddaten mithilfe von bedingten Formaten generiert.\nÄndern Sie die Inhalte in den Zellen in Spalten nach Spalte I beginnend mit Zelle I7 nicht.","AUFGABE","ZUGEWIESEN\nAN","FORTSCHRITT","START","ENDE",null,"TAGE",{"$f":"LEFT(TEXT(I5,\"TTT\"),1)","v":"M"},{"$f":"LEFT(TEXT(J5,\"TTT\"),1)","v":"D"},{"$f":"LEFT(TEXT(K5,\"TTT\"),1)","v":"M"},{"$f":"LEFT(TEXT(L5,\"TTT\"),1)","v":"D"},{"$f":"LEFT(TEXT(M5,\"TTT\"),1)","v":"F"},{"$f":"LEFT(TEXT(N5,\"TTT\"),1)","v":"S"},{"$f":"LEFT(TEXT(O5,\"TTT\"),1)","v":"S"},{"$f":"LEFT(TEXT(P5,\"TTT\"),1)","v":"M"},{"$f":"LEFT(TEXT(Q5,\"TTT\"),1)","v":"D"},{"$f":"LEFT(TEXT(R5,\"TTT\"),1)","v":"M"},{"$f":"LEFT(TEXT(S5,\"TTT\"),1)","v":"D"},{"$f":"LEFT(TEXT(T5,\"TTT\"),1)","v":"F"},{"$f":"LEFT(TEXT(U5,\"TTT\"),1)","v":"S"},{"$f":"LEFT(TEXT(V5,\"TTT\"),1)","v":"S"},{"$f":"LEFT(TEXT(W5,\"TTT\"),1)","v":"M"},{"$f":"LEFT(TEXT(X5,\"TTT\"),1)","v":"D"},{"$f":"LEFT(TEXT(Y5,\"TTT\"),1)","v":"M"},{"$f":"LEFT(TEXT(Z5,\"TTT\"),1)","v":"D"},{"$f":"LEFT(TEXT(AA5,\"TTT\"),1)","v":"F"},{"$f":"LEFT(TEXT(AB5,\"TTT\"),1)","v":"S"},{"$f":"LEFT(TEXT(AC5,\"TTT\"),1)","v":"S"},{"$f":"LEFT(TEXT(AD5,\"TTT\"),1)","v":"M"},{"$f":"LEFT(TEXT(AE5,\"TTT\"),1)","v":"D"},{"$f":"LEFT(TEXT(AF5,\"TTT\"),1)","v":"M"},{"$f":"LEFT(TEXT(AG5,\"TTT\"),1)","v":"D"},{"$f":"LEFT(TEXT(AH5,\"TTT\"),1)","v":"F"},{"$f":"LEFT(TEXT(AI5,\"TTT\"),1)","v":"S"},{"$f":"LEFT(TEXT(AJ5,\"TTT\"),1)","v":"S"},{"$f":"LEFT(TEXT(AK5,\"TTT\"),1)","v":"M"},{"$f":"LEFT(TEXT(AL5,\"TTT\"),1)","v":"D"},{"$f":"LEFT(TEXT(AM5,\"TTT\"),1)","v":"M"},{"$f":"LEFT(TEXT(AN5,\"TTT\"),1)","v":"D"},{"$f":"LEFT(TEXT(AO5,\"TTT\"),1)","v":"F"},{"$f":"LEFT(TEXT(AP5,\"TTT\"),1)","v":"S"},{"$f":"LEFT(TEXT(AQ5,\"TTT\"),1)","v":"S"},{"$f":"LEFT(TEXT(AR5,\"TTT\"),1)","v":"M"},{"$f":"LEFT(TEXT(AS5,\"TTT\"),1)","v":"D"},{"$f":"LEFT(TEXT(AT5,\"TTT\"),1)","v":"M"},{"$f":"LEFT(TEXT(AU5,\"TTT\"),1)","v":"D"},{"$f":"LEFT(TEXT(AV5,\"TTT\"),1)","v":"F"},{"$f":"LEFT(TEXT(AW5,\"TTT\"),1)","v":"S"},{"$f":"LEFT(TEXT(AX5,\"TTT\"),1)","v":"S"},{"$f":"LEFT(TEXT(AY5,\"TTT\"),1)","v":"M"},{"$f":"LEFT(TEXT(AZ5,\"TTT\"),1)","v":"D"},{"$f":"LEFT(TEXT(BA5,\"TTT\"),1)","v":"M"},{"$f":"LEFT(TEXT(BB5,\"TTT\"),1)","v":"D"},{"$f":"LEFT(TEXT(BC5,\"TTT\"),1)","v":"F"},{"$f":"LEFT(TEXT(BD5,\"TTT\"),1)","v":"S"},{"$f":"LEFT(TEXT(BE5,\"TTT\"),1)","v":"S"},{"$f":"LEFT(TEXT(BF5,\"TTT\"),1)","v":"M"},{"$f":"LEFT(TEXT(BG5,\"TTT\"),1)","v":"D"},{"$f":"LEFT(TEXT(BH5,\"TTT\"),1)","v":"M"},{"$f":"LEFT(TEXT(BI5,\"TTT\"),1)","v":"D"},{"$f":"LEFT(TEXT(BJ5,\"TTT\"),1)","v":"F"},{"$f":"LEFT(TEXT(BK5,\"TTT\"),1)","v":"S"},{"$f":"LEFT(TEXT(BL5,\"TTT\"),1)","v":"S"}]
["Löschen Sie diese Zeile nicht. Diese Zeile ist ausgeblendet, um eine Formel zu schützen, die zum Hervorheben des aktuellen Tags im Projektzeitplan verwendet wird. ",{"$nulls":6},{"$f":"IF(OR(ISBLANK(task_start),ISBLANK(task_end)),\"\",task_end-task_start+1)","v":""}]
["Zelle B8 enthält den Beispieltitel „Phase 1“. \nGeben Sie in Zelle B8 einen neuen Titel ein.\nGeben Sie in Zelle C8 einen Namen ein, der der Phase zugewiesen wird, wenn diese für Ihr Projekt zutrifft.\nGeben Sie in Zelle D8 den Fortschritt für die gesamte Phase ein, wenn diese für Ihr Projekt zutrifft.\nGeben Sie in den Zellen E8 und F8 das Start- und Enddatum für die gesamte Phase ein, wenn diese für Ihr Projekt zutrifft. \nDas Gantt-Diagramm füllt automatisch die entsprechenden Daten und die entsprechende Schattierung entsprechend dem eingegebenen Fortschritt aus.\nUm die Phase zu löschen und nur mit Aufgaben zu arbeiten, löschen Sie einfach diese Zeile.","Phase 1 Titel",{"$nulls":5},{"$f":"IF(OR(ISBLANK(task_start),ISBLANK(task_end)),\"\",task_end-task_start+1)","v":""}]
["Zelle B9 enthält die Beispielaufgabe „Aufgabe 1“. \nGeben Sie einen neuen Aufgabennamen in Zelle B9 ein.\nGeben Sie in Zelle C9 eine Person ein, der die Aufgabe zugewiesen werden soll.\nGeben Sie in Zelle D9 den Fortschritt der Aufgabe ein. In der Zelle wird eine Statusanzeige angezeigt, die entsprechend der in der Zelle eingegebenen Zahl schattiert wird. Bei einem Fortschritt von 50 % wäre beispielsweise die Hälfte der Zelle schattiert.\nGeben Sie das Anfangsdatum der Aufgabe in Zelle E9 ein.\nGeben Sie das Enddatum der Aufgabe in Zelle F9 ein.\nVon Zelle I9 bis Zelle BL9 wird eine Statusleiste mit einer entsprechenden Schattierung für die eingegebenen Datumsangaben in Blöcken angezeigt. ","Aufgabe 1","Name",{"v":0.5,"d":"50%"},{"$f":"Projektanfang","v":"2022-02-14"},{"$f":"E9+3","v":"2022-02-17"},null,4]
["In den Zeilen 10 bis 13 wird das Muster aus Zeile 9 wiederholt. \nWiederholen Sie die Anweisungen aus Zelle A9 für alle Aufgabenzeilen auf diesem Arbeitsblatt. Überschreiben Sie alle Beispieldaten.\nEin Beispiel für eine andere Phase beginnt in Zelle A14. \nSetzen Sie die Eingabe von Aufgaben in den Zellen A10 bis A13 fort, oder wechseln Sie zu Zelle A14, um weitere Informationen zu erhalten.","Aufgabe 2",null,{"v":0.6,"d":"60%"},{"$f":"F9","v":"2022-02-17"},{"$f":"E10+2","v":"2022-02-19"},null,3]
[null,"Aufgabe 3",null,{"v":0.5,"d":"50%"},{"$f":"F10","v":"2022-02-19"},{"$f":"E11+4","v":"2022-02-23"},null,5]
[null,"Aufgabe 4",null,{"v":0.25,"d":"25%"},{"$f":"F11","v":"2022-02-23"},{"$f":"E12+5","v":"2022-02-28"},null,6]
[null,"Aufgabe 5",null,null,{"$f":"E10+1","v":"2022-02-18"},{"$f":"E13+2","v":"2022-02-20"},null,3]
["Die Zelle rechts enthält den Beispieltitel „Phase 2“. \nSie können jederzeit in Spalte B eine neue Phase erstellen. In diesem Projektplan sind keine Phasen erforderlich. Um die Phase zu entfernen, löschen Sie einfach die Zeile.\nZum Erstellen eines neuen Phasenblocks in dieser Zeile geben Sie in der Zelle rechts einen Titel ein.\nUm der Phase oben weitere Aufgaben hinzuzufügen, geben Sie über dieser Zeile eine neue Zeile ein, und tragen Sie die Aufgabendaten wie in den Anweisungen in Zelle A9 ein.\nAktualisieren Sie die Phasendetails in der Zelle rechts basierend auf den Anweisungen in Zelle A8.\nNavigieren Sie weiter nach unten durch die Spaltenzellen A, um weitere Informationen zu erhalten.\nWenn Sie in diesem Arbeitsblatt keine neuen Zeilen hinzugefügt haben, werden Sie sehen, dass in den Zellen B20 und B26 2 weitere Phasenblöcke für Sie erstellt wurden. Navigieren Sie andernfalls durch die Spaltenzellen A, um die zusätzlichen Blöcke zu finden. \nWiederholen Sie bei Bedarf die Anweisungen aus den Zellen A8 und A9.","Phase 2 Titel",{"$nulls":5},""]
[null,"Aufgabe 1",null,{"v":0.5,"d":"50%"},{"$f":"E13+1","v":"2022-02-19"},{"$f":"E15+4","v":"2022-02-23"},null,5]
[null,"Aufgabe 2",null,{"v":0.5,"d":"50%"},{"$f":"E15+2","v":"2022-02-21"},{"$f":"E16+5","v":"2022-02-26"},null,6]
[null,"Aufgabe 3",null,null,{"$f":"F16","v":"2022-02-26"},{"$f":"E17+3","v":"2022-03-01"},null,4]
[null,"Aufgabe 4",null,null,{"$f":"E17","v":"2022-02-26"},{"$f":"E18+2","v":"2022-02-28"},null,3]
[null,"Aufgabe 5",null,null,{"$f":"E18","v":"2022-02-26"},{"$f":"E19+3","v":"2022-03-01"},null,4]
["Titelblock für Beispielphase","Phase 3 Titel",{"$nulls":5},""]
[null,"Aufgabe 1",null,null,{"$f":"E9+15","v":"2022-03-01"},{"$f":"E21+5","v":"2022-03-06"},null,6]
[null,"Aufgabe 2",null,null,{"$f":"F21+1","v":"2022-03-07"},{"$f":"E22+4","v":"2022-03-11"},null,5]
[null,"Aufgabe 3",null,null,{"$f":"E22+5","v":"2022-03-12"},{"$f":"E23+5","v":"2022-03-17"},null,6]
[null,"Aufgabe 4",null,null,{"$f":"F23+1","v":"2022-03-18"},{"$f":"E24+4","v":"2022-03-22"},null,5]
[null,"Aufgabe 5",null,null,{"$f":"E23","v":"2022-03-12"},{"$f":"E25+4","v":"2022-03-16"},null,5]
["Titelblock für Beispielphase","Phase 4 Titel",{"$nulls":5},""]
[null,"Aufgabe 1",null,null,"Datum","Datum",null,{"$error":"#VALUE!"}]
[null,"Aufgabe 2",null,null,"Datum","Datum",null,{"$error":"#VALUE!"}]
[null,"Aufgabe 3",null,null,"Datum","Datum",null,{"$error":"#VALUE!"}]
[null,"Aufgabe 4",null,null,"Datum","Datum",null,{"$error":"#VALUE!"}]
[null,"Aufgabe 5",null,null,"Datum","Datum",null,{"$error":"#VALUE!"}]
["Dies ist eine leere Zeile.",{"$nulls":6},""]
["Diese Zeile kennzeichnet das Ende des Projektplans. Geben Sie in dieser Zeile NICHTS EIN. \nFügen Sie ÜBER dieser Zeile neue Zeilen ein, um mit der Erstellung Ihres Projektplans fortzufahren.","Neue Zeilen ÜBER dieser einfügen",{"$nulls":5},""]

{"sheet":"Info","index":1,"n_rows":16,"n_cols":1,"rows_kept":16}
[]
["EINFACHES GANTT-DIAGRAMM von Vertex42.com"]
["https://www.vertex42.com/ExcelTemplates/simple-gantt-chart.html"]
["Über diese Vorlage"]
["Diese Vorlage bietet eine einfache Möglichkeit, ein Gantt-Diagramm zu erstellen, um Ihr Projekt zu visualisieren und seine Nachverfolgung zu erleichtern. Geben Sie einfach Ihre Aufgaben sowie das Start- und Enddatum ein; es sind keine Formeln erforderlich. Die Balken im Gantt-Diagramm stellen die Dauer der Aufgabe dar und werden mithilfe bedingtes Formatierungen angezeigt. Fügen Sie neue Aufgaben ein, indem Sie neue Zeilen einfügen."]
["Leitfaden für die Sprachausgabe"]
["Diese Arbeitsmappe enthält 2 Arbeitsblätter. \n\nArbeitszeittabelle\nInfo\n\nDie Anweisungen für jedes Arbeitsblatt befinden sich in Spalte A ab Zelle A1 der einzelnen Arbeitsblätter. Sie sind in verborgenem Text geschrieben. Jeder Schritt führt Sie durch die Informationen in der betreffenden Zeile. Jeder nachfolgende Schritt fährt in den Zellen A2, A3 usw. fort, sofern nicht ausdrücklich anders angegeben. Beispielsweise kann der Anweisungstext etwa für den nächsten Schritt \"Mit Zelle 6 fortfahren\" besagen. \n\nDieser verborgene Text wird nicht gedruckt.\n\nUm diese Anweisungen aus dem Arbeitsblatt zu entfernen, löschen Sie einfach Spalte A."]
["Weitere Hilfe"]
["Klicken Sie auf den Link unten, um zu vertex42.com zu gehen und mehr über die Verwendung dieser Vorlage zu erfahren, z. B. wie Tage und Arbeitstage berechnet werden, wie Aufgabenabhängigkeiten erstellt werden, wie die Farben der Balken geändert werden, wie eine Bildlaufleiste hinzugefügt wird, um die Anzeigewoche einfacher zu ändern, wie der in dem Diagramm angezeigte Datumsbereich geändert wird usw."]
["Verwenden des einfachen Gantt-Diagramms"]
["Weitere Projektmanagementvorlagen"]
["Rufen Sie Vertex42.com auf, um weitere Projektmanagementvorlagen herunterzuladen, einschließlich unterschiedlicher Typen von Projektplänen, Gantt-Diagramme, Aufgabenlisten usw."]
["Projektmanagementvorlagen"]
["Informationen zu Vertex42"]
["Vertex42.com bietet mehr als 300 professionell entworfene Tabellenkalkulationsvorlagen für die Nutzung im Geschäft, zu Hause und in Bildungseinrichtungen – die meisten können Sie kostenlos herunterladen. Die Sammlung beinhaltet eine Vielzahl von Kalendern, Planern und Zeitplänen sowie Tabellen für die private Finanzkalkulation zur Erstellung von Budgets, Reduzierung von Belastungen und Amortisation von Darlehen."]
["Unternehmen werden bei Rechnungen, Arbeitszeittabellen, Bestandstrackern, Geschäftsberichten und Vorlagen für die Projektplanung fündig. Lehrer und Schüler finden Ressourcen wie Stundenpläne, Klassenbücher und Teilnahmebögen. Organisieren Sie Ihr Familienleben mit Speiseplänen, Checklisten und Übungsprotokollen. Jede Vorlage wurde gründlich recherchiert, verfeinert und im Lauf der Zeit anhand des Feedbacks von Tausenden von Benutzern verbessert."]